[Event "3rd Memorial Warakomska 2019"]
[Site "Suwalki"]
[Date "2019.08.08"]
[Round "5.23"]
[White "Czopor, Maciej"]
[Black "Punin, Andrii"]
[Result "1/2-1/2"]
[ECO "B01"]
[WhiteElo "2250"]
[BlackElo "2305"]
[Annotator "NA"]
[PlyCount "104"]
[EventDate "2019.08.05"]
[EventType "swiss"]
[EventCountry "POL"]
[SourceTitle "playchess.com"]
[Source "ChessBase"]
[SourceQuality "1"]
[TimeControl "40/5400+30:1800+30"]

1. e4 {[%emt 0:00:00]} d5 {[%emt 0:00:00]} 2. exd5 {[%emt 0:00:10]} Qxd5 {[%emt 0:00:00]} 3. Nc3 {[%emt 0:00:14]} Qd8 {[%emt 0:00:00]} 4. d4 {[%emt 0:01:39]} Nf6 {[%emt 0:00:00]} 5. Nf3 {[%emt 0:03:04]} Bg4 {[%emt 0:00:08]} 6. Be2 {[%emt 0:02:56]} c6 {[%emt 0:01:03]} 7. O-O {[%emt 0:02:48]} Bxf3 {[%emt 0:00:56]} 8. Bxf3 {[%emt 0:00:17]} e6 {[%emt 0:00:07]} 9. Re1 {[%emt 0:05:27]} Be7 {[%emt 0:00:11]} 10. Ne2 {[%emt 0:05:52]} O-O {[%emt 0:04:24]} 11. c4 {[%emt 0:02:09]} Nbd7 {[%emt 0:00:12]} 12. Bd2 {[%emt 0:02:00]} e5 {[%emt 0:02:45]} 13. g3 {[%emt 0:04:07]} Qb6 {[%emt 0:07:44]} 14. Bc3 {[%emt 0:06:11]} exd4 {[%emt 0:01:17]} 15. Nxd4 {[%emt 0:07:06]} Bb4 {[%emt 0:00:36]} 16. Qd2 {[%emt 0:04:01]} Bxc3 {[%emt 0:02:30]} 17. Qxc3 {[%emt 0:00:16]} Rfe8 {[%emt 0:08:04]} 18. Rad1 {[%emt 0:04:06]} Rxe1+ {[%emt 0:04:29]} 19. Rxe1 {[%emt 0:00:22]} Re8 {[%emt 0:00:13]} 20. Rxe8+ {[%emt 0:01:33]} Nxe8 {[%emt 0:00:07]} 21. Nb3 {[%emt 0:08:22]} Nef6 {[%emt 0:07:12]} 22. h4 {[%emt 0:01:26]} h5 {[%emt 0:03:35]} 23. Kg2 {[%emt 0:01:41]} Kf8 {[%emt 0:13:56]} 24. a4 {[%emt 0:07:01]} Nc5 {[%emt 0:04:57]} 25. Nxc5 {[%emt 0:00:58]} Qxc5 {[%emt 0:00:09]} 26. b4 {[%emt 0:01:05]} Qe7 {[%emt 0:02:15]} 27. a5 {[%emt 0:07:18]} a6 {[%emt 0:02:04]} 28. b5 {[%emt 0:02:33]} Qc5 {[%emt 0:02:07]} 29. bxa6 {[%emt 0:00:49]} bxa6 {[%emt 0:00:07]} 30. Qb3 {[%emt 0:01:07]} Qxa5 {[%emt 0:05:34]} 31. Qb8+ {[%emt 0:00:24]} Ke7 {[%emt 0:00:11]} 32. Qb7+ {[%emt 0:03:56]} Kf8 {[%emt 0:03:02]} 33. Qc8+ {[%emt 0:00:29]} Ke7 {[%emt 0:00:33]} 34. Qxc6 {[%emt 0:00:33]} Nd7 {[%emt 0:02:59]} 35. Qe4+ {[%emt 0:05:53]} Qe5 {[%emt 0:02:05]} 36. Qb7 {[%emt 0:00:17]} a5 {[%emt 0:02:19]} 37. Bc6 {[%emt 0:00:44]} Qd4 {[%emt 0:01:46]} 38. c5 {[%emt 0:01:25]} Kd8 {[%emt 0:04:33]} 39. Qa8+ {[%emt 0:01:52]} Ke7 {[%emt 0:00:38]} 40. Bxd7 {[%emt 0:00:00]} Qxd7 {[%emt 0:00:00]} 41. Qxa5 {[%emt 0:02:17]} Qd5+ {[%emt 0:02:28]} 42. Kh2 {[%emt 0:01:47]} Kd7 {[%emt 0:01:18]} 43. Qb5+ {[%emt 0:01:25]} Kc7 {[%emt 0:00:16]} 44. Qe8 {[%emt 0:02:38]} g6 {[%emt 0:02:48]} 45. Qf8 {[%emt 0:01:33]} Kd7 {[%emt 0:03:21]} 46. Qg7 {[%emt 0:01:18]} Kc6 {[%emt 0:00:16]} 47. Qc3 {[%emt 0:00:51]} f5 {[%emt 0:04:59]} 48. Qf6+ {[%emt 0:10:06]} Kxc5 {[%emt 0:00:32]} 49. Qxg6 {[%emt 0:01:07]} Qf3 {[%emt 0:00:11]} 50. Kg1 {[%emt 0:00:27]} Qd1+ {[%emt 0:00:04]} 51. Kg2 {[%emt 0:00:21]} Qd5+ {[%emt 0:00:05]} 52. Kg1 {[%emt 0:06:19]} Qd1+ {[%emt 0:00:21]} 1/2-1/2

[Event "3rd Memorial Warakomska 2019"]
[Site "Suwalki"]
[Date "2019.08.08"]
[Round "5.24"]
[White "Zylka, Stanislaw"]
[Black "Zaika, Daniil"]
[Result "1-0"]
[ECO "B52"]
[WhiteElo "2308"]
[BlackElo "2216"]
[Annotator "NA"]
[PlyCount "51"]
[EventDate "2019.08.05"]
[EventType "swiss"]
[EventCountry "POL"]
[SourceTitle "playchess.com"]
[Source "ChessBase"]
[SourceQuality "1"]
[TimeControl "40/5400+30:1800+30"]

1. e4 {[%emt 0:00:00]} c5 {[%emt 0:00:00]} 2. Nf3 {[%emt 0:00:00]} d6 {[%emt 0:00:00]} 3. Bb5+ {[%emt 0:00:00]} Bd7 {[%emt 0:00:05]} 4. c4 {[%emt 0:00:08]} e5 {[%emt 0:00:29]} 5. Nc3 {[%emt 0:00:13]} Nc6 {[%emt 0:01:37]} 6. d3 {[%emt 0:02:32]} g6 {[%emt 0:03:09]} 7. O-O {[%emt 0:08:12]} Bg7 {[%emt 0:00:19]} 8. Ne1 {[%emt 0:05:27]} Nge7 {[%emt 0:05:37]} 9. f4 {[%emt 0:00:58]} O-O {[%emt 0:14:36]} 10. Bxc6 {[%emt 0:04:20]} bxc6 {[%emt 0:04:02]} 11. fxe5 {[%emt 0:01:52]} Bxe5 {[%emt 0:00:04]} 12. Bh6 {[%emt 0:02:33]} Re8 {[%emt 0:08:41]} 13. Qd2 {[%emt 0:05:43]} f5 {[%emt 0:09:22]} 14. Nf3 {[%emt 0:00:30]} Bh8 {[%emt 0:00:16]} 15. Rae1 {[%emt 0:04:37]} Nc8 {[%emt 0:13:36]} 16. Kh1 {[%emt 0:01:34]} Rb8 {[%emt 0:02:28]} 17. Re2 {[%emt 0:01:21]} fxe4 {[%emt 0:10:00]} 18. dxe4 {[%emt 0:08:29]} Be6 {[%emt 0:00:06]} 19. b3 {[%emt 0:03:13]} Rb7 {[%emt 0:06:35]} 20. Ref2 {[%emt 0:05:17]} Bg7 {[%emt 0:01:12]} 21. Bxg7 {[%emt 0:00:54]} Kxg7 {[%emt 0:01:03]} 22. Na4 {[%emt 0:02:24]} Rf7 {[%emt 0:01:37]} 23. e5 {[%emt 0:08:48]} dxe5 {[%emt 0:00:47]} 24. Qxd8 {[%emt 0:01:40]} Rxd8 {[%emt 0:00:27]} 25. Nxc5 {[%emt 0:00:46]} Bf5 {[%emt 0:11:02]} 26. Ng5 {[%emt 0:02:03]} 1-0

[Event "3rd Memorial Warakomska 2019"]
[Site "Suwalki"]
[Date "2019.08.08"]
[Round "5.25"]
[White "Dzhuguryan, Tygran"]
[Black "Wiewiora, Eneasz"]
[Result "1/2-1/2"]
[ECO "D85"]
[WhiteElo "2230"]
[BlackElo "2344"]
[Annotator "NA"]
[PlyCount "82"]
[EventDate "2019.08.05"]
[EventType "swiss"]
[EventCountry "POL"]
[SourceTitle "playchess.com"]
[Source "ChessBase"]
[SourceQuality "1"]
[TimeControl "40/5400+30:1800+30"]

1. d4 {[%emt 0:00:00]} Nf6 {[%emt 0:00:00]} 2. c4 {[%emt 0:00:00]} g6 {[%emt 0:00:00]} 3. Nc3 {[%emt 0:00:00]} d5 {[%emt 0:00:00]} 4. cxd5 {[%emt 0:00:28]} Nxd5 {[%emt 0:00:00]} 5. e4 {[%emt 0:00:12]} Nxc3 {[%emt 0:00:00]} 6. bxc3 {[%emt 0:00:03]} Bg7 {[%emt 0:00:04]} 7. Be3 {[%emt 0:01:58]} O-O {[%emt 0:00:24]} 8. Qd2 {[%emt 0:00:17]} c5 {[%emt 0:00:05]} 9. Rc1 {[%emt 0:00:21]} Qa5 {[%emt 0:00:28]} 10. Nf3 {[%emt 0:06:15]} Rd8 {[%emt 0:32:53]} 11. d5 {[%emt 0:02:03]} Nc6 {[%emt 0:18:51]} 12. Be2 {[%emt 0:10:53]} e6 {[%emt 0:12:21]} 13. Bg5 {[%emt 0:06:45]} f6 {[%emt 0:01:04]} 14. Bf4 {[%emt 0:02:26]} e5 {[%emt 0:14:28]} 15. Be3 {[%emt 0:00:30]} b6 {[%emt 0:02:53]} 16. O-O {[%emt 0:00:54]} Ba6 {[%emt 0:06:42]} 17. a4 {[%emt 0:07:24]} Nd4 {[%emt 0:04:09]} 18. Bxa6 {[%emt 0:04:43]} Nxf3+ {[%emt 0:00:32]} 19. gxf3 {[%emt 0:00:02]} Qxa6 {[%emt 0:00:06]} 20. Qa2 {[%emt 0:00:29]} c4 {[%emt 0:00:46]} 21. Rb1 {[%emt 0:02:27]} f5 {[%emt 0:00:45]} 22. Rb4 {[%emt 0:05:48]} f4 {[%emt 0:00:22]} 23. Bc1 {[%emt 0:00:17]} Rac8 {[%emt 0:00:11]} 24. Rb5 {[%emt 0:00:43]} Bf8 {[%emt 0:01:23]} 25. d6 {[%emt 0:04:07]} Bxd6 {[%emt 0:01:29]} 26. Rd1 {[%emt 0:00:08]} Kg7 {[%emt 0:00:45]} 27. Rbd5 {[%emt 0:00:54]} Be7 {[%emt 0:01:17]} 28. Rd7 {[%emt 0:04:10]} Rxd7 {[%emt 0:00:04]} 29. Rxd7 {[%emt 0:00:04]} Kf6 {[%emt 0:00:03]} 30. Ba3 {[%emt 0:00:35]} Re8 {[%emt 0:00:33]} 31. Bxe7+ {[%emt 0:06:58]} Rxe7 {[%emt 0:00:03]} 32. Rd8 {[%emt 0:02:02]} Kg5 {[%emt 0:01:08]} 33. Qa3 {[%emt 0:01:44]} Qb7 {[%emt 0:00:25]} 34. Qd6 {[%emt 0:00:37]} Qc7 {[%emt 0:00:23]} 35. Qd5 {[%emt 0:00:04]} Kh4 {[%emt 0:02:13]} 36. Kg2 {[%emt 0:02:51]} Kg5 {[%emt 0:00:04]} 37. Rd6 {[%emt 0:00:36]} Kh4 {[%emt 0:00:45]} 38. Rd8 {[%emt 0:02:41]} Kg5 {[%emt 0:00:19]} 39. Kf1 {[%emt 0:03:07]} Kh4 {[%emt 0:00:15]} 40. Kg2 {[%emt 0:00:00]} Kg5 {[%emt 0:00:00]} 41. Rd6 {[%emt 0:16:14]} Kh4 {[%emt 0:14:37]} 1/2-1/2

[Event "3rd Memorial Warakomska 2019"]
[Site "Suwalki"]
[Date "2019.08.08"]
[Round "5.26"]
[White "Ashwath, R.."]
[Black "Sowul, Bartosz"]
[Result "1-0"]
[ECO "A56"]
[WhiteElo "2365"]
[BlackElo "2210"]
[Annotator "NA"]
[PlyCount "81"]
[EventDate "2019.08.05"]
[EventType "swiss"]
[EventCountry "POL"]
[SourceTitle "playchess.com"]
[Source "ChessBase"]
[SourceQuality "1"]
[TimeControl "40/5400+30:1800+30"]

1. d4 {[%emt 0:00:00]} Nf6 {[%emt 0:00:00]} 2. c4 {[%emt 0:00:00]} c5 {[%emt 0:00:00]} 3. Nf3 {[%emt 0:00:00]} g6 {[%emt 0:00:37]} 4. Nc3 {[%emt 0:00:21]} cxd4 {[%emt 0:00:09]} 5. Nxd4 {[%emt 0:00:06]} Bg7 {[%emt 0:00:26]} 6. e4 {[%emt 0:00:26]} Nc6 {[%emt 0:01:10]} 7. Be3 {[%emt 0:00:24]} O-O {[%emt 0:00:13]} 8. Be2 {[%emt 0:01:25]} d6 {[%emt 0:00:07]} 9. O-O {[%emt 0:03:53]} Bd7 {[%emt 0:00:26]} 10. Qd2 {[%emt 0:01:28]} Nxd4 {[%emt 0:00:23]} 11. Bxd4 {[%emt 0:00:02]} Bc6 {[%emt 0:00:09]} 12. f3 {[%emt 0:00:23]} Nd7 {[%emt 0:00:13]} 13. Be3 {[%emt 0:01:32]} a5 {[%emt 0:00:07]} 14. b3 {[%emt 0:02:13]} Nc5 {[%emt 0:00:10]} 15. Rab1 {[%emt 0:01:40]} e6 {[%emt 0:00:46]} 16. Nb5 {[%emt 0:13:32]} Be5 {[%emt 0:02:09]} 17. Bg5 {[%emt 0:05:14]} Qb6 {[%emt 0:03:39]} 18. Kh1 {[%emt 0:01:56]} Rfe8 {[%emt 0:08:23]} 19. Qe3 {[%emt 0:09:27]} Bxb5 {[%emt 0:20:40]} 20. cxb5 {[%emt 0:00:36]} Rac8 {[%emt 0:08:41]} 21. Rbd1 {[%emt 0:05:47]} Qc7 {[%emt 0:05:52]} 22. f4 {[%emt 0:15:20]} Bg7 {[%emt 0:00:43]} 23. Bf3 {[%emt 0:01:06]} d5 {[%emt 0:11:30]} 24. e5 {[%emt 0:16:21]} Qb6 {[%emt 0:02:31]} 25. Qe2 {[%emt 0:01:07]} Nd7 {[%emt 0:00:56]} 26. Bh4 {[%emt 0:01:01]} Bf8 {[%emt 0:04:52]} 27. f5 {[%emt 0:05:01]} exf5 {[%emt 0:04:42]} 28. Rxd5 {[%emt 0:01:14]} Qe6 {[%emt 0:08:22]} 29. Re1 {[%emt 0:01:22]} Bb4 {[%emt 0:02:48]} 30. Red1 {[%emt 0:03:23]} Nxe5 {[%emt 0:09:30]} 31. h3 {[%emt 0:00:40]} b6 {[%emt 0:03:15]} 32. Bf2 {[%emt 0:02:37]} Rc3 {[%emt 0:01:52]} 33. Rd8 {[%emt 0:00:34]} Rc8 {[%emt 0:00:36]} 34. Bd5 {[%emt 0:01:36]} Qf6 {[%emt 0:00:23]} 35. Rxc8 {[%emt 0:01:15]} Rxc8 {[%emt 0:00:04]} 36. Bxb6 {[%emt 0:00:13]} Qxb6 {[%emt 0:00:49]} 37. Qxe5 {[%emt 0:00:04]} Rf8 {[%emt 0:00:43]} 38. Bc4 {[%emt 0:00:26]} Qf2 {[%emt 0:00:29]} 39. Rd7 {[%emt 0:01:53]} Qh4 {[%emt 0:00:31]} 40. b6 {[%emt 0:00:00]} f4 {[%emt 0:00:00]} 41. b7 {[%emt 0:04:02]} 1-0

[Event "3rd Memorial Warakomska 2019"]
[Site "Suwalki"]
[Date "2019.08.08"]
[Round "5.27"]
[White "Fiedorek, Michal"]
[Black "Kukula, Pawel"]
[Result "1/2-1/2"]
[ECO "C88"]
[WhiteElo "2241"]
[BlackElo "2209"]
[Annotator "NA"]
[PlyCount "112"]
[EventDate "2019.08.05"]
[EventType "swiss"]
[EventCountry "POL"]
[SourceTitle "playchess.com"]
[Source "ChessBase"]
[SourceQuality "1"]
[TimeControl "40/5400+30:1800+30"]

1. e4 {[%emt 0:00:00]} e5 {[%emt 0:00:00]} 2. Nf3 {[%emt 0:00:00]} Nc6 {[%emt 0:00:00]} 3. Bb5 {[%emt 0:00:00]} a6 {[%emt 0:00:00]} 4. Ba4 {[%emt 0:00:04]} Nf6 {[%emt 0:00:07]} 5. O-O {[%emt 0:00:19]} Be7 {[%emt 0:00:07]} 6. Re1 {[%emt 0:00:13]} b5 {[%emt 0:00:09]} 7. Bb3 {[%emt 0:00:07]} d6 {[%emt 0:00:06]} 8. a4 {[%emt 0:00:22]} Bd7 {[%emt 0:00:10]} 9. c3 {[%emt 0:00:47]} O-O {[%emt 0:00:29]} 10. d4 {[%emt 0:01:28]} h6 {[%emt 0:00:18]} 11. h3 {[%emt 0:02:26]} Re8 {[%emt 0:00:20]} 12. Nbd2 {[%emt 0:09:29]} Bf8 {[%emt 0:03:14]} 13. d5 {[%emt 0:15:26]} Ne7 {[%emt 0:05:45]} 14. Nf1 {[%emt 0:08:00]} g6 {[%emt 0:11:11]} 15. N3h2 {[%emt 0:10:31]} Bg7 {[%emt 0:03:41]} 16. Qf3 {[%emt 0:01:44]} Kh7 {[%emt 0:03:02]} 17. g4 {[%emt 0:08:17]} Nfg8 {[%emt 0:07:21]} 18. Ng3 {[%emt 0:02:47]} Rf8 {[%emt 0:00:21]} 19. Bc2 {[%emt 0:07:04]} bxa4 {[%emt 0:02:58]} 20. Nhf1 {[%emt 0:05:54]} c6 {[%emt 0:07:11]} 21. dxc6 {[%emt 0:03:55]} Bxc6 {[%emt 0:00:07]} 22. Bxa4 {[%emt 0:00:13]} Bxa4 {[%emt 0:01:05]} 23. Rxa4 {[%emt 0:00:12]} d5 {[%emt 0:01:36]} 24. exd5 {[%emt 0:03:39]} Qxd5 {[%emt 0:02:12]} 25. Qxd5 {[%emt 0:03:01]} Nxd5 {[%emt 0:00:06]} 26. Rd1 {[%emt 0:02:54]} Nge7 {[%emt 0:01:56]} 27. Be3 {[%emt 0:02:06]} Rfc8 {[%emt 0:10:36]} 28. c4 {[%emt 0:06:37]} Nf4 {[%emt 0:09:50]} 29. Rd7 {[%emt 0:01:13]} Nc6 {[%emt 0:00:03]} 30. Kh2 {[%emt 0:01:49]} Kg8 {[%emt 0:02:06]} 31. Ne4 {[%emt 0:01:35]} a5 {[%emt 0:02:57]} 32. Bb6 {[%emt 0:01:33]} Bf8 {[%emt 0:06:32]} 33. c5 {[%emt 0:00:49]} Nd4 {[%emt 0:00:46]} 34. Nfd2 {[%emt 0:01:17]} Nd3 {[%emt 0:00:35]} 35. Rd5 {[%emt 0:00:56]} Nxb2 {[%emt 0:01:24]} 36. Rxa5 {[%emt 0:00:32]} Rxa5 {[%emt 0:00:43]} 37. Bxa5 {[%emt 0:00:05]} Nd3 {[%emt 0:00:15]} 38. Bb6 {[%emt 0:00:31]} f5 {[%emt 0:02:08]} 39. gxf5 {[%emt 0:00:27]} gxf5 {[%emt 0:00:07]} 40. Nd6 {[%emt 0:00:00]} Rc6 {[%emt 0:00:00]} 41. Nxf5 {[%emt 0:23:54]} Nxf5 {[%emt 0:01:53]} 42. Rxd3 {[%emt 0:00:10]} Bxc5 {[%emt 0:00:14]} 43. Rc3 {[%emt 0:01:51]} Rxb6 {[%emt 0:01:17]} 44. Rxc5 {[%emt 0:00:06]} Rb2 {[%emt 0:06:15]} 45. Ne4 {[%emt 0:01:24]} Nd4 {[%emt 0:00:46]} 46. Kg2 {[%emt 0:01:12]} Rb5 {[%emt 0:03:13]} 47. Nf6+ {[%emt 0:01:02]} Kg7 {[%emt 0:00:59]} 48. Rxb5 {[%emt 0:00:07]} Nxb5 {[%emt 0:00:07]} 49. Nd7 {[%emt 0:00:44]} e4 {[%emt 0:00:22]} 50. Nc5 {[%emt 0:00:21]} Nc3 {[%emt 0:00:41]} 51. Kg3 {[%emt 0:00:41]} Kg6 {[%emt 0:04:00]} 52. Kf4 {[%emt 0:01:41]} Ne2+ {[%emt 0:00:04]} 53. Kxe4 {[%emt 0:01:50]} Ng1 {[%emt 0:00:07]} 54. Ne6 {[%emt 0:01:44]} Nxh3 {[%emt 0:00:18]} 55. Nf4+ {[%emt 0:00:08]} Nxf4 {[%emt 0:00:07]} 56. Kxf4 {[%emt 0:00:03]} Kf6 {[%emt 0:00:53]} 1/2-1/2

[Event "3rd Memorial Warakomska 2019"]
[Site "Suwalki"]
[Date "2019.08.08"]
[Round "5.28"]
[White "Sharankov, Grigory"]
[Black "Walter, Szymon"]
[Result "1/2-1/2"]
[ECO "E20"]
[WhiteElo "2221"]
[BlackElo "2314"]
[Annotator "NA"]
[PlyCount "77"]
[EventDate "2019.08.05"]
[EventType "swiss"]
[EventCountry "POL"]
[SourceTitle "playchess.com"]
[Source "ChessBase"]
[SourceQuality "1"]
[TimeControl "40/5400+30:1800+30"]

1. d4 Nf6 2. c4 e6 3. Nc3 Bb4 4. g3 c5 5. Nf3 cxd4 6. Nxd4 Ne4 7. Qd3 Qa5 8. Nb3 Nxc3 9. Bd2 Ne4 10. Qxe4 Bxd2+ 11. Nxd2 O-O 12. Bg2 Nc6 13. a3 Rd8 14. Qh4 d5 15. cxd5 exd5 16. b4 Qb6 17. O-O a5 18. bxa5 Rxa5 19. a4 Rc5 20. Rfd1 Be6 21. Rab1 Qa6 22. e3 Qa8 23. Bf1 h6 24. Nb3 Rc3 25. Qf4 Rc8 26. Nd4 Nxd4 27. Qxd4 R8c7 28. Rb2 Qc8 29. Be2 Rc1 30. Rbd2 R7c2 31. Rxc2 Qxc2 32. Rxc1 Qxc1+ 33. Qd1 Qxd1+ 34. Bxd1 Kf8 35. Kf1 Ke7 36. Ke2 Kd6 37. Kd3 Kc5 38. Kc3 b6 39. h4 {Kd4+ Kxd4} 1/2-1/2

[Event "3rd Memorial Warakomska 2019"]
[Site "Suwalki"]
[Date "2019.08.08"]
[Round "5.29"]
[White "Suliborski, Jakub"]
[Black "Koziol, Kamil"]
[Result "1-0"]
[ECO "E10"]
[WhiteElo "2131"]
[BlackElo "2307"]
[Annotator "NA"]
[PlyCount "121"]
[EventDate "2019.08.05"]
[EventType "swiss"]
[EventCountry "POL"]
[SourceTitle "playchess.com"]
[Source "ChessBase"]
[SourceQuality "1"]
[TimeControl "40/5400+30:1800+30"]

1. d4 {[%emt 0:00:00]} Nf6 {[%emt 0:00:09]} 2. Nf3 {[%emt 0:00:00]} e6 {[%emt 0:00:58]} 3. c4 {[%emt 0:00:00]} c5 {[%emt 0:01:21]} 4. d5 {[%emt 0:01:00]} b5 {[%emt 0:00:28]} 5. dxe6 {[%emt 0:02:43]} fxe6 {[%emt 0:00:13]} 6. cxb5 {[%emt 0:00:03]} d5 {[%emt 0:00:20]} 7. e3 {[%emt 0:00:16]} Be7 {[%emt 0:11:24]} 8. Nbd2 {[%emt 0:00:09]} O-O {[%emt 0:01:43]} 9. b3 {[%emt 0:01:52]} a6 {[%emt 0:10:48]} 10. Bb2 {[%emt 0:03:00]} Qb6 {[%emt 0:03:02]} 11. bxa6 {[%emt 0:01:48]} Nxa6 {[%emt 0:01:23]} 12. Be2 {[%emt 0:01:24]} Nb4 {[%emt 0:01:05]} 13. a3 {[%emt 0:05:13]} Nc6 {[%emt 0:00:50]} 14. O-O {[%emt 0:00:45]} Qc7 {[%emt 0:09:37]} 15. Qc2 {[%emt 0:06:18]} Bd6 {[%emt 0:09:41]} 16. Rac1 {[%emt 0:09:22]} Bd7 {[%emt 0:12:43]} 17. Bd3 {[%emt 0:04:26]} e5 {[%emt 0:02:29]} 18. e4 {[%emt 0:00:06]} d4 {[%emt 0:01:04]} 19. Nc4 {[%emt 0:03:17]} Be7 {[%emt 0:01:52]} 20. b4 {[%emt 0:02:38]} Bg4 {[%emt 0:04:34]} 21. Ncd2 {[%emt 0:07:04]} Nh5 {[%emt 0:01:02]} 22. Qb3+ {[%emt 0:11:56]} Kh8 {[%emt 0:00:29]} 23. Bb5 {[%emt 0:00:15]} Nd8 {[%emt 0:02:09]} 24. h3 {[%emt 0:02:43]} Be6 {[%emt 0:01:30]} 25. Bc4 {[%emt 0:00:11]} Nf4 {[%emt 0:00:18]} 26. Rfe1 {[%emt 0:01:10]} Rf6 {[%emt 0:02:10]} 27. Nf1 {[%emt 0:07:32]} Bxh3 {[%emt 0:03:45]} 28. g3 {[%emt 0:02:07]} Nfe6 {[%emt 0:04:51]} 29. N1h2 {[%emt 0:00:55]} Nf7 {[%emt 0:01:25]} 30. Rc2 {[%emt 0:03:21]} Nfg5 {[%emt 0:00:50]} 31. Nxg5 {[%emt 0:00:43]} Nxg5 {[%emt 0:00:05]} 32. Bc1 {[%emt 0:00:14]} Rg6 {[%emt 0:02:44]} 33. Bxg5 {[%emt 0:11:31]} Rxg5 {[%emt 0:01:22]} 34. Bf7 {[%emt 0:02:42]} Bd7 {[%emt 0:01:20]} 35. b5 {[%emt 0:02:40]} Qa5 {[%emt 0:05:52]} 36. Rb1 {[%emt 0:00:07]} Rb8 {[%emt 0:00:43]} 37. a4 {[%emt 0:00:29]} g6 {[%emt 0:00:31]} 38. Nf3 {[%emt 0:00:56]} Rh5 {[%emt 0:00:06]} 39. Qd5 {[%emt 0:01:20]} Qc7 {[%emt 0:00:41]} 40. Rcb2 {[%emt 0:00:00]} Kg7 {[%emt 0:00:00]} 41. b6 {[%emt 0:05:31]} Qd6 {[%emt 0:06:38]} 42. Qxd6 {[%emt 0:02:20]} Bxd6 {[%emt 0:00:36]} 43. Bd5 {[%emt 0:00:03]} c4 {[%emt 0:02:13]} 44. Bxc4 {[%emt 0:01:41]} Bxa4 {[%emt 0:00:08]} 45. Bd5 {[%emt 0:00:13]} g5 {[%emt 0:04:10]} 46. Ra1 {[%emt 0:00:50]} Be8 {[%emt 0:03:30]} 47. Ra7+ {[%emt 0:00:06]} Kf6 {[%emt 0:00:19]} 48. Nd2 {[%emt 0:02:51]} Bc5 {[%emt 0:01:17]} 49. Ra5 {[%emt 0:01:25]} Be7 {[%emt 0:00:15]} 50. Nc4 {[%emt 0:00:14]} Bd7 {[%emt 0:00:12]} 51. f3 {[%emt 0:04:10]} d3 {[%emt 0:00:18]} 52. g4 {[%emt 0:01:09]} Rh4 {[%emt 0:00:46]} 53. b7 {[%emt 0:00:14]} h5 {[%emt 0:01:05]} 54. Ra8 {[%emt 0:05:12]} Bc5+ {[%emt 0:02:27]} 55. Kg2 {[%emt 0:03:14]} hxg4 {[%emt 0:00:21]} 56. Rxb8 {[%emt 0:01:18]} gxf3+ {[%emt 0:00:09]} 57. Kxf3 {[%emt 0:00:15]} Rf4+ {[%emt 0:00:28]} 58. Kg2 {[%emt 0:00:17]} Rg4+ {[%emt 0:00:15]} 59. Kh1 {[%emt 0:00:27]} Rg1+ {[%emt 0:00:31]} 60. Kh2 {[%emt 0:00:07]} g4 {[%emt 0:00:06]} 61. Rg2 {[%emt 0:01:43]} 1-0

[Event "3rd Memorial Warakomska 2019"]
[Site "Suwalki"]
[Date "2019.08.08"]
[Round "5.30"]
[White "Reza, Wojciech"]
[Black "Sanz Wawer, Daniel"]
[Result "1/2-1/2"]
[ECO "E20"]
[WhiteElo "2261"]
[BlackElo "2154"]
[Annotator "NA"]
[PlyCount "63"]
[EventDate "2019.08.05"]
[EventType "swiss"]
[EventCountry "POL"]
[SourceTitle "playchess.com"]
[Source "ChessBase"]
[SourceQuality "1"]
[TimeControl "40/5400+30:1800+30"]

1. d4 {[%emt 0:00:00]} Nf6 {[%emt 0:00:00]} 2. c4 {[%emt 0:00:46]} e6 {[%emt 0:00:00]} 3. Nc3 {[%emt 0:01:42]} Bb4 {[%emt 0:00:00]} 4. f3 {[%emt 0:10:00]} d5 {[%emt 0:02:04]} 5. a3 {[%emt 0:01:16]} Be7 {[%emt 0:05:11]} 6. e4 {[%emt 0:12:27]} dxe4 {[%emt 0:00:24]} 7. fxe4 {[%emt 0:00:04]} e5 {[%emt 0:00:57]} 8. d5 {[%emt 0:01:03]} Bc5 {[%emt 0:04:57]} 9. Nf3 {[%emt 0:17:13]} Bg4 {[%emt 0:04:57]} 10. Be2 {[%emt 0:21:49]} Bxf3 {[%emt 0:00:07]} 11. Bxf3 {[%emt 0:00:11]} a5 {[%emt 0:00:04]} 12. Bd2 {[%emt 0:07:58]} Nbd7 {[%emt 0:01:14]} 13. Rb1 {[%emt 0:10:12]} Qe7 {[%emt 0:01:45]} 14. Qe2 {[%emt 0:05:18]} a4 {[%emt 0:03:35]} 15. g4 {[%emt 0:01:29]} h6 {[%emt 0:03:03]} 16. h4 {[%emt 0:01:14]} Bb6 {[%emt 0:03:26]} 17. Nb5 {[%emt 0:02:53]} Rd8 {[%emt 0:25:13]} 18. Bb4 {[%emt 0:01:48]} Nc5 {[%emt 0:01:43]} 19. Rd1 {[%emt 0:00:15]} c6 {[%emt 0:07:14]} 20. d6 {[%emt 0:01:09]} Qd7 {[%emt 0:00:05]} 21. Nc7+ {[%emt 0:00:59]} Kf8 {[%emt 0:00:22]} 22. Qe3 {[%emt 0:00:27]} Nxg4 {[%emt 0:12:21]} 23. Bxg4 {[%emt 0:00:03]} Qxg4 {[%emt 0:00:24]} 24. Bxc5 {[%emt 0:00:03]} Bxc5 {[%emt 0:00:16]} 25. Qxc5 {[%emt 0:00:09]} Qxe4+ {[%emt 0:00:07]} 26. Kf2 {[%emt 0:00:36]} Qc2+ {[%emt 0:01:05]} 27. Ke3 {[%emt 0:00:49]} Qxb2 {[%emt 0:02:41]} 28. Rd2 {[%emt 0:00:28]} Qc3+ {[%emt 0:00:32]} 29. Rd3 {[%emt 0:00:06]} Qb2 {[%emt 0:00:01]} 30. Rd2 {[%emt 0:00:31]} Qc3+ {[%emt 0:00:20]} 31. Rd3 {[%emt 0:00:05]} Qb2 {[%emt 0:00:32]} 32. Rd2 {[%emt 0:02:23]} 1/2-1/2

[Event "3rd Memorial Warakomska 2019"]
[Site "Suwalki"]
[Date "2019.08.08"]
[Round "5.31"]
[White "Lisowski, Krzysztof"]
[Black "Molenda, Marcin"]
[Result "0-1"]
[ECO "B40"]
[WhiteElo "2187"]
[BlackElo "2387"]
[Annotator "NA"]
[PlyCount "60"]
[EventDate "2019.08.05"]
[EventType "swiss"]
[EventCountry "POL"]
[SourceTitle "playchess.com"]
[Source "ChessBase"]
[SourceQuality "1"]
[TimeControl "40/5400+30:1800+30"]

1. e4 {[%emt 0:00:00]} c5 {[%emt 0:00:00]} 2. Nf3 {[%emt 0:00:06]} e6 {[%emt 0:00:00]} 3. d3 {[%emt 0:02:34]} b6 {[%emt 0:02:18]} 4. g3 {[%emt 0:00:55]} Bb7 {[%emt 0:01:02]} 5. Bg2 {[%emt 0:00:51]} d6 {[%emt 0:01:47]} 6. O-O {[%emt 0:03:02]} Nf6 {[%emt 0:02:15]} 7. Re1 {[%emt 0:10:40]} Nbd7 {[%emt 0:02:53]} 8. c3 {[%emt 0:09:36]} Be7 {[%emt 0:04:15]} 9. Nbd2 {[%emt 0:01:02]} O-O {[%emt 0:00:40]} 10. a3 {[%emt 0:10:53]} Rc8 {[%emt 0:01:23]} 11. b4 {[%emt 0:02:51]} cxb4 {[%emt 0:00:53]} 12. axb4 {[%emt 0:04:08]} Rxc3 {[%emt 0:10:16]} 13. Rxa7 {[%emt 0:02:16]} Qb8 {[%emt 0:07:36]} 14. Ra3 {[%emt 0:00:14]} Qc7 {[%emt 0:06:00]} 15. Nb3 {[%emt 0:21:17]} d5 {[%emt 0:05:18]} 16. Nfd4 {[%emt 0:17:21]} Bxb4 {[%emt 0:05:00]} 17. Nb5 {[%emt 0:03:34]} Rxc1 {[%emt 0:00:44]} 18. Qxc1 {[%emt 0:01:19]} Qxc1 {[%emt 0:03:01]} 19. Rxc1 {[%emt 0:00:04]} Bxa3 {[%emt 0:00:13]} 20. Nxa3 {[%emt 0:00:04]} dxe4 {[%emt 0:00:23]} 21. Rc7 {[%emt 0:06:00]} Bd5 {[%emt 0:00:40]} 22. Nd2 {[%emt 0:01:10]} exd3 {[%emt 0:00:54]} 23. Bxd5 {[%emt 0:00:17]} exd5 {[%emt 0:00:04]} 24. Rc3 {[%emt 0:00:45]} Nc5 {[%emt 0:00:11]} 25. f3 {[%emt 0:00:26]} Re8 {[%emt 0:00:55]} 26. Kf1 {[%emt 0:00:29]} d4 {[%emt 0:01:17]} 27. Rc4 {[%emt 0:00:17]} Nd5 {[%emt 0:02:22]} 28. Rxd4 {[%emt 0:00:21]} Ne3+ {[%emt 0:00:07]} 29. Kf2 {[%emt 0:01:02]} Nc2 {[%emt 0:00:04]} 30. Nxc2 {[%emt 0:00:42]} dxc2 {[%emt 0:00:05]} 0-1